[Event "Championnat de France Universitaire Nan"]
[Site "Nancy, France"]
[Date "2020.02.09"]
[Round "9.1"]
[White "Geronimi, Pierre-Francois"]
[Black "Rakotomaharo, Fy Antenaina"]
[Result "0-1"]
[WhiteElo "2070"]
[BlackElo "2430"]
[PlyCount "124"]
[EventDate "2020.??.??"]
[TimeControl "15+5"]
[WhiteClock "0:00:25"]
[BlackClock "0:04:03"]

1. e4 {[%emt 0:00:02]} c5 {[%emt 0:00:04]} 2. Nf3 {[%emt 0:00:01]} d6 {[%emt 0:
00:02]} 3. d4 {[%emt 0:00:00]} cxd4 {[%emt 0:00:03]} 4. Nxd4 {[%emt 0:00:00]}
Nf6 {[%emt 0:00:01]} 5. Bd3 {[%emt 0:00:01]} Nc6 {[%emt 0:00:22]} 6. Nxc6 {
[%emt 0:00:02]} bxc6 {[%emt 0:00:00]} 7. O-O {[%emt 0:00:02]} e5 {[%emt 0:00:
12]} 8. Qe2 {[%emt 0:00:05]} Be7 {[%emt 0:00:06]} 9. Nd2 {[%emt 0:00:04]} O-O {
[%emt 0:00:06]} 10. b3 {[%emt 0:00:02]} Nd7 {[%emt 0:00:29]} 11. Bb2 {[%emt 0:
00:43]} Nc5 {[%emt 0:00:04]} 12. Nc4 {[%emt 0:01:13]} f5 {[%emt 0:01:13]} 13.
exf5 {[%emt 0:02:53]} Nxd3 {[%emt 0:00:08]} 14. cxd3 {[%emt 0:01:26]} Bxf5 {
[%emt 0:00:25]} 15. Ne3 {[%emt 0:00:42]} Be6 {[%emt 0:00:19]} 16. Rac1 {[%emt
0:00:04]} c5 {[%emt 0:00:14]} 17. Nc4 {[%emt 0:00:55]} Bg5 {[%emt 0:00:38]} 18.
Rce1 {[%emt 0:00:23]} Bd5 {[%emt 0:00:34]} 19. Nxd6 {[%emt 0:02:13]} Qxd6 {
[%emt 0:00:23]} 20. Qxe5 {[%emt 0:00:01]} Qxe5 {[%emt 0:00:02]} 21. Rxe5 {
[%emt 0:00:00]} Bf6 {[%emt 0:00:00]} 22. Rxd5 {[%emt 0:00:01]} Bxb2 {[%emt 0:
00:02]} 23. Rxc5 {[%emt 0:00:01]} Bd4 {[%emt 0:00:25]} 24. Rc4 {[%emt 0:00:10]}
Rad8 {[%emt 0:00:05]} 25. Rc2 {[%emt 0:00:58]} Rc8 {[%emt 0:00:14]} 26. Rc4 {
[%emt 0:00:15]} Rcd8 {[%emt 0:00:10]} 27. Rc2 {[%emt 0:00:01]} Bb6 {[%emt 0:00:
06]} 28. Rd1 {[%emt 0:00:23]} Rc8 {[%emt 0:00:38]} 29. Re2 {[%emt 0:00:34]} Rc3
{[%emt 0:00:36]} 30. g3 {[%emt 0:00:35]} Rd8 {[%emt 0:03:15]} 31. Red2 {[%emt
0:00:50]} Rd4 {[%emt 0:00:33]} 32. Kf1 {[%emt 0:00:17]} Rc6 {[%emt 0:00:14]}
33. Re2 {[%emt 0:00:24]} Rcd6 {[%emt 0:00:02]} 34. Re3 {[%emt 0:00:07]} R4d5 {
[%emt 0:00:05]} 35. Rf3 {[%emt 0:00:07]} Ba5 {[%emt 0:00:34]} 36. a3 {[%emt 0:
00:31]} Bc3 {[%emt 0:00:08]} 37. Rc1 {[%emt 0:00:29]} Bb2 {[%emt 0:00:26]} 38.
Rc8+ {[%emt 0:00:30]} Rd8 {[%emt 0:00:01]} 39. Rxd8+ {[%emt 0:00:19]} Rxd8 {
[%emt 0:00:01]} 40. a4 {[%emt 0:00:04]} Rb8 {[%emt 0:00:02]} 41. d4 {[%emt 0:
00:04]} Bxd4 {[%emt 0:00:02]} 42. Rd3 {[%emt 0:00:03]} Bb6 {[%emt 0:00:18]} 43.
f4 {[%emt 0:00:38]} Rc8 {[%emt 0:00:00]} 44. Kg2 {[%emt 0:00:16]} Rc2+ {[%emt
0:00:12]} 45. Kf3 {[%emt 0:00:18]} Rxh2 {[%emt 0:00:30]} 46. b4 {[%emt 0:00:06]
} Rf2+ {[%emt 0:00:00]} 47. Kg4 {[%emt 0:00:08]} Rb2 {[%emt 0:00:08]} 48. a5 {
[%emt 0:00:02]} Bg1 {[%emt 0:00:05]} 49. Rd8+ {[%emt 0:00:01]} Kf7 {[%emt 0:00:
03]} 50. Rd7+ {[%emt 0:00:01]} Kf6 {[%emt 0:00:06]} 51. Rb7 {[%emt 0:00:12]} g6
{[%emt 0:00:05]} 52. a6 {[%emt 0:00:12]} h5+ {[%emt 0:00:19]} 53. Kf3 {[%emt 0:
00:02]} Rb3+ {[%emt 0:00:02]} 54. Kg2 {[%emt 0:00:01]} Bb6 {[%emt 0:00:09]} 55.
Rd7 {[%emt 0:00:09]} Rxb4 {[%emt 0:00:05]} 56. Rd6+ {[%emt 0:00:01]} Kf7 {
[%emt 0:00:35]} 57. Rd7+ {[%emt 0:00:03]} Ke6 {[%emt 0:00:01]} 58. Rg7 {[%emt
0:00:09]} Kf5 {[%emt 0:00:03]} 59. Rf7+ {[%emt 0:00:01]} Kg4 {[%emt 0:00:03]}
60. Rg7 {[%emt 0:00:06]} Rb2+ {[%emt 0:00:01]} 61. Kf1 {[%emt 0:00:02]} Kf3 {
[%emt 0:00:02]} 62. Ke1 {[%emt 0:00:03]} Be3 {[%emt 0:00:02]} 0-1

[Event "Championnat de France Universitaire Nan"]
[Site "Nancy, France"]
[Date "2020.02.09"]
[Round "9.2"]
[White "Albaric, Etienne"]
[Black "Msellek, Ilyass"]
[Result "1/2-1/2"]
[WhiteElo "2258"]
[BlackElo "2261"]
[PlyCount "106"]
[EventDate "2020.??.??"]
[TimeControl "15+5"]
[WhiteClock "0:00:15"]
[BlackClock "0:01:00"]

1. e4 {[%emt 0:00:00]} d6 {[%emt 0:01:08]} 2. d4 {[%emt 0:00:02]} Nf6 {[%emt 0:
00:00]} 3. Nc3 {[%emt 0:00:02]} e5 {[%emt 0:00:00]} 4. Nf3 {[%emt 0:00:07]}
Nbd7 {[%emt 0:00:01]} 5. Bc4 {[%emt 0:00:01]} Be7 {[%emt 0:00:00]} 6. a4 {
[%emt 0:00:03]} O-O {[%emt 0:00:02]} 7. O-O {[%emt 0:00:01]} c6 8. h3 {[%emt 0:
00:06]} a5 {[%emt 0:00:03]} 9. Re1 {[%emt 0:01:08]} exd4 {[%emt 0:00:13]} 10.
Nxd4 {[%emt 0:00:13]} Nb6 {[%emt 0:00:03]} 11. Ba2 {[%emt 0:00:06]} Nfd7 {
[%emt 0:00:17]} 12. Nf5 {[%emt 0:05:50]} Nc5 {[%emt 0:00:05]} 13. Nxe7+ {[%emt
0:00:18]} Qxe7 {[%emt 0:00:02]} 14. Qd4 {[%emt 0:00:53]} Qe5 {[%emt 0:03:17]}
15. Qxe5 {[%emt 0:01:16]} dxe5 {[%emt 0:00:01]} 16. Be3 {[%emt 0:00:00]} Nbxa4
{[%emt 0:00:23]} 17. Nxa4 {[%emt 0:00:34]} Nxa4 {[%emt 0:00:00]} 18. Bb3 {
[%emt 0:00:27]} b5 {[%emt 0:02:06]} 19. Bxa4 {[%emt 0:00:02]} bxa4 {[%emt 0:00:
00]} 20. Rxa4 {[%emt 0:00:00]} f5 {[%emt 0:02:00]} 21. exf5 {[%emt 0:01:51]}
Bxf5 {[%emt 0:00:02]} 22. c3 {[%emt 0:00:03]} Bc2 {[%emt 0:00:21]} 23. Rc4 {
[%emt 0:01:12]} Rfb8 {[%emt 0:00:21]} 24. Bc1 {[%emt 0:00:11]} e4 {[%emt 0:00:
22]} 25. Rxc6 {[%emt 0:00:08]} a4 {[%emt 0:00:02]} 26. Rc4 {[%emt 0:00:39]} Rc8
{[%emt 0:00:31]} 27. Rxc8+ {[%emt 0:00:18]} Rxc8 {[%emt 0:00:00]} 28. Re2 {
[%emt 0:00:19]} Bd3 {[%emt 0:00:09]} 29. Re3 {[%emt 0:00:07]} a3 {[%emt 0:00:
33]} 30. bxa3 {[%emt 0:00:04]} Rxc3 {[%emt 0:00:02]} 31. Re1 {[%emt 0:00:51]}
Rb3 {[%emt 0:00:05]} 32. a4 {[%emt 0:00:14]} Rb1 {[%emt 0:01:10]} 33. a5 {
[%emt 0:00:03]} Ra1 {[%emt 0:00:18]} 34. Bd2 {[%emt 0:00:01]} Ra2 {[%emt 0:00:
06]} 35. Bc3 {[%emt 0:00:01]} Ra3 {[%emt 0:00:36]} 36. Rc1 {[%emt 0:00:01]} Ra2
{[%emt 0:00:00]} 37. Ra1 {[%emt 0:00:23]} Rxa1+ {[%emt 0:01:33]} 38. Bxa1 {
[%emt 0:00:01]} g6 {[%emt 0:00:01]} 39. g4 {[%emt 0:00:04]} h5 {[%emt 0:00:28]}
40. Kg2 {[%emt 0:00:22]} Kf7 {[%emt 0:00:15]} 41. Kg3 {[%emt 0:00:00]} hxg4 {
[%emt 0:00:15]} 42. hxg4 {[%emt 0:00:04]} g5 {[%emt 0:00:47]} 43. Bd4 {[%emt 0:
00:01]} Be2 {[%emt 0:00:17]} 44. Be3 {[%emt 0:00:02]} Kg6 {[%emt 0:00:01]} 45.
Bd4 {[%emt 0:00:07]} Kh6 {[%emt 0:00:09]} 46. Bc5 {[%emt 0:00:25]} Kg6 {[%emt
0:00:02]} 47. Be7 {[%emt 0:00:01]} Kh6 {[%emt 0:00:02]} 48. Kg2 {[%emt 0:00:04]
} Kg6 {[%emt 0:00:05]} 49. Bd8 {[%emt 0:00:06]} Kh6 {[%emt 0:00:02]} 50. Kg3 {
[%emt 0:00:05]} Kg6 {[%emt 0:00:01]} 51. Bc7 {[%emt 0:00:09]} Kh6 {[%emt 0:00:
05]} 52. Bb6 {[%emt 0:00:06]} Kg6 {[%emt 0:00:01]} 53. Bd4 {[%emt 0:00:01]} Kh6
{[%emt 0:00:02]} 1/2-1/2

[Event "Championnat de France Universitaire Nan"]
[Site "Nancy, France"]
[Date "2020.02.09"]
[Round "9.3"]
[White "Kajganic, Fabien"]
[Black "Gatineau, Yovann"]
[Result "0-1"]
[WhiteElo "1908"]
[BlackElo "2381"]
[PlyCount "68"]
[EventDate "2020.??.??"]
[TimeControl "15+5"]
[WhiteClock "0:01:06"]
[BlackClock "0:08:53"]

1. e4 {[%emt 0:00:00]} c5 {[%emt 0:00:00]} 2. Nc3 {[%emt 0:00:03]} Nc6 {[%emt
0:00:01]} 3. g3 {[%emt 0:00:01]} g6 {[%emt 0:00:00]} 4. Bg2 {[%emt 0:00:02]}
Bg7 {[%emt 0:00:00]} 5. d3 {[%emt 0:00:04]} d6 {[%emt 0:00:01]} 6. Be3 {[%emt
0:00:05]} e5 {[%emt 0:00:00]} 7. Qd2 {[%emt 0:00:07]} Nge7 {[%emt 0:00:01]} 8.
f4 {[%emt 0:00:08]} Nd4 {[%emt 0:00:18]} 9. Nd1 {[%emt 0:00:08]} f5 {[%emt 0:
00:16]} 10. c3 {[%emt 0:00:03]} Ne6 {[%emt 0:00:01]} 11. fxe5 {[%emt 0:00:22]}
dxe5 {[%emt 0:00:04]} 12. Nf2 {[%emt 0:00:53]} O-O {[%emt 0:00:10]} 13. Bh6 {
[%emt 0:00:02]} f4 {[%emt 0:00:28]} 14. Bxg7 {[%emt 0:00:09]} Kxg7 {[%emt 0:00:
01]} 15. Nf3 {[%emt 0:00:42]} Nc6 {[%emt 0:00:01]} 16. O-O-O {[%emt 0:01:30]}
b5 {[%emt 0:00:12]} 17. Bh3 {[%emt 0:01:50]} b4 {[%emt 0:00:39]} 18. Kb1 {
[%emt 0:00:44]} bxc3 {[%emt 0:01:09]} 19. Qxc3 {[%emt 0:00:29]} Qd6 {[%emt 0:
01:05]} 20. Bxe6 {[%emt 0:02:38]} Bxe6 {[%emt 0:00:02]} 21. Ng5 {[%emt 0:00:51]
} Bg8 {[%emt 0:01:21]} 22. gxf4 {[%emt 0:00:29]} Rxf4 {[%emt 0:00:03]} 23. Nfh3
{[%emt 0:00:37]} Rf6 {[%emt 0:00:01]} 24. Rc1 {[%emt 0:02:20]} h6 {[%emt 0:00:
11]} 25. Qxc5 {[%emt 0:00:18]} Qxd3+ {[%emt 0:00:02]} 26. Ka1 {[%emt 0:00:02]}
hxg5 {[%emt 0:00:02]} 27. Nxg5 {[%emt 0:00:08]} Rd8 {[%emt 0:00:57]} 28. h4 {
[%emt 0:00:21]} Qa6 {[%emt 0:00:21]} 29. a3 {[%emt 0:00:09]} Qa4 {[%emt 0:01:
18]} 30. h5 {[%emt 0:00:42]} Qb3 {[%emt 0:00:04]} 31. Kb1 {[%emt 0:00:44]} Qa2+
{[%emt 0:00:01]} 32. Kc2 {[%emt 0:00:01]} Qb3+ {[%emt 0:00:00]} 33. Kb1 {[%emt
0:00:04]} Qa2+ {[%emt 0:00:06]} 34. Kc2 {[%emt 0:00:01]} Nd4+ {[%emt 0:00:00]}
0-1

[Event "Championnat de France Universitaire Nan"]
[Site "Nancy, France"]
[Date "2020.02.09"]
[Round "9.4"]
[White "Marchais, Antoine"]
[Black "Defromont, Benjamin"]
[Result "1-0"]
[WhiteElo "2010"]
[BlackElo "2263"]
[PlyCount "107"]
[EventDate "2020.??.??"]
[TimeControl "15+5"]
[WhiteClock "0:10:15"]
[BlackClock "0:00:32"]

1. e4 {[%emt 0:00:01]} e6 {[%emt 0:00:29]} 2. d4 {[%emt 0:00:00]} d5 {[%emt 0:
00:01]} 3. e5 {[%emt 0:00:01]} c5 {[%emt 0:00:02]} 4. Nf3 {[%emt 0:00:00]} Nc6
{[%emt 0:00:14]} 5. Bd3 {[%emt 0:00:01]} cxd4 {[%emt 0:00:12]} 6. O-O {[%emt 0:
00:02]} f5 {[%emt 0:01:15]} 7. a3 {[%emt 0:00:33]} Qc7 {[%emt 0:00:46]} 8. Re1
{[%emt 0:00:02]} Nge7 {[%emt 0:00:16]} 9. b4 {[%emt 0:00:03]} Ng6 {[%emt 0:00:
30]} 10. Qe2 {[%emt 0:00:02]} a6 {[%emt 0:00:45]} 11. h4 {[%emt 0:00:01]} Be7 {
[%emt 0:00:33]} 12. h5 {[%emt 0:00:01]} Nf8 {[%emt 0:00:43]} 13. Bb2 {[%emt 0:
00:54]} Nd7 {[%emt 0:01:03]} 14. Nxd4 {[%emt 0:00:03]} Nxd4 {[%emt 0:00:54]}
15. Bxd4 {[%emt 0:00:02]} Nb6 {[%emt 0:00:08]} 16. Nd2 {[%emt 0:00:03]} Bd7 {
[%emt 0:00:07]} 17. c4 {[%emt 0:00:14]} dxc4 {[%emt 0:03:01]} 18. Nxc4 {[%emt
0:00:02]} Nd5 {[%emt 0:00:04]} 19. Nd6+ {[%emt 0:03:13]} Bxd6 {[%emt 0:00:49]}
20. exd6 {[%emt 0:00:01]} Qxd6 {[%emt 0:00:02]} 21. Bxf5 {[%emt 0:00:00]} O-O {
[%emt 0:02:46]} 22. Bxe6+ {[%emt 0:00:02]} Bxe6 {[%emt 0:00:01]} 23. Qxe6+ {
[%emt 0:00:01]} Qxe6 {[%emt 0:00:02]} 24. Rxe6 {[%emt 0:00:00]} Nf4 {[%emt 0:
00:04]} 25. Re7 {[%emt 0:00:48]} Rf7 {[%emt 0:00:01]} 26. Rae1 {[%emt 0:00:22]}
Nxh5 {[%emt 0:00:50]} 27. Bc5 {[%emt 0:00:00]} Rxe7 {[%emt 0:00:42]} 28. Rxe7 {
[%emt 0:00:00]} b5 {[%emt 0:00:20]} 29. Re6 {[%emt 0:00:42]} Nf4 {[%emt 0:00:
18]} 30. Rb6 {[%emt 0:00:07]} g6 {[%emt 0:00:25]} 31. g3 {[%emt 0:00:18]} Nd5 {
[%emt 0:00:09]} 32. Rd6 {[%emt 0:00:13]} Ne7 {[%emt 0:00:05]} 33. g4 {[%emt 0:
00:30]} Nc8 {[%emt 0:00:17]} 34. Rd7 {[%emt 0:00:04]} h6 {[%emt 0:00:04]} 35.
Kg2 {[%emt 0:00:02]} a5 {[%emt 0:00:07]} 36. bxa5 {[%emt 0:00:03]} Rxa5 {[%emt
0:00:04]} 37. Rd8+ {[%emt 0:00:00]} Kf7 {[%emt 0:00:01]} 38. Rxc8 {[%emt 0:00:
02]} Ra4 {[%emt 0:00:00]} 39. Bb4 {[%emt 0:00:01]} Ra7 {[%emt 0:00:04]} 40. Rb8
{[%emt 0:00:02]} Ke6 {[%emt 0:00:02]} 41. Rxb5 {[%emt 0:00:02]} Rd7 {[%emt 0:
00:02]} 42. Rb6+ {[%emt 0:00:02]} Kf7 {[%emt 0:00:02]} 43. Rd6 {[%emt 0:00:00]}
Rc7 {[%emt 0:00:03]} 44. a4 {[%emt 0:00:02]} Rc4 {[%emt 0:00:01]} 45. Rb6 {
[%emt 0:00:10]} Rxg4+ {[%emt 0:00:02]} 46. Kf3 {[%emt 0:00:00]} Rc4 {[%emt 0:
00:10]} 47. a5 {[%emt 0:00:00]} Rc1 {[%emt 0:00:03]} 48. a6 {[%emt 0:00:03]}
Ra1 {[%emt 0:00:04]} 49. Rb7+ {[%emt 0:00:01]} Ke6 {[%emt 0:00:01]} 50. a7 {
[%emt 0:00:00]} Kd5 {[%emt 0:00:06]} 51. Bd2 {[%emt 0:00:02]} g5 {[%emt 0:00:
14]} 52. Be3 {[%emt 0:00:02]} h5 {[%emt 0:00:04]} 53. Rb8 {[%emt 0:00:02]} g4+
{[%emt 0:00:03]} 54. Kg3 {[%emt 0:00:01]} 1-0

[Event "Championnat de France Universitaire Nan"]
[Site "Nancy, France"]
[Date "2020.02.09"]
[Round "9.5"]
[White "Buttard, Axel"]
[Black "Alloui-Cros, Baptiste"]
[Result "1-0"]
[WhiteElo "1905"]
[BlackElo "2141"]
[PlyCount "80"]
[EventDate "2020.??.??"]
[TimeControl "15+5"]
[WhiteClock "0:00:14"]
[BlackClock "0:00:07"]

1. d4 {[%emt 0:00:02]} Nf6 {[%emt 0:00:02]} 2. Bf4 {[%emt 0:00:02]} g6 {[%emt
0:00:04]} 3. Nc3 {[%emt 0:00:10]} d5 {[%emt 0:00:05]} 4. Qd2 {[%emt 0:00:05]}
c6 {[%emt 0:03:59]} 5. f3 {[%emt 0:00:50]} b5 {[%emt 0:02:01]} 6. e3 {[%emt 0:
00:57]} Bg7 {[%emt 0:00:41]} 7. O-O-O {[%emt 0:01:08]} Qa5 {[%emt 0:01:17]} 8.
Kb1 {[%emt 0:00:05]} b4 {[%emt 0:01:36]} 9. Nce2 {[%emt 0:00:02]} Nbd7 {[%emt
0:00:31]} 10. Nc1 {[%emt 0:00:41]} O-O {[%emt 0:00:54]} 11. g4 {[%emt 0:00:59]}
Re8 {[%emt 0:00:41]} 12. h4 {[%emt 0:01:23]} e5 {[%emt 0:00:22]} 13. dxe5 {
[%emt 0:01:33]} Nxe5 {[%emt 0:00:14]} 14. h5 {[%emt 0:00:40]} Ba6 {[%emt 0:01:
01]} 15. Bxa6 {[%emt 0:00:55]} Qxa6 {[%emt 0:00:01]} 16. hxg6 {[%emt 0:00:55]}
fxg6 {[%emt 0:00:31]} 17. Qh2 {[%emt 0:01:57]} Nc4 {[%emt 0:00:27]} 18. Bg5 {
[%emt 0:00:56]} Re7 {[%emt 0:00:50]} 19. Qh4 {[%emt 0:01:05]} Rf7 {[%emt 0:00:
25]} 20. Nd3 {[%emt 0:00:25]} Re8 {[%emt 0:00:23]} 21. Nh3 {[%emt 0:01:03]}
Nxe3 {[%emt 0:00:28]} 22. Rde1 {[%emt 0:00:28]} Nc4 {[%emt 0:00:23]} 23. Bxf6 {
[%emt 0:00:21]} Rxe1+ {[%emt 0:00:20]} 24. Rxe1 {[%emt 0:00:02]} Bxf6 {[%emt 0:
00:06]} 25. Re8+ {[%emt 0:00:06]} Kg7 {[%emt 0:00:01]} 26. Ng5 {[%emt 0:00:12]}
Bxg5 {[%emt 0:00:09]} 27. Qxg5 {[%emt 0:00:02]} Qb6 {[%emt 0:00:07]} 28. Qc1 {
[%emt 0:00:08]} Qb7 {[%emt 0:00:06]} 29. b3 {[%emt 0:00:07]} Na3+ {[%emt 0:00:
01]} 30. Kb2 {[%emt 0:00:01]} Qd7 {[%emt 0:00:02]} 31. Qe3 {[%emt 0:00:03]} Qd6
{[%emt 0:00:11]} 32. Re6 {[%emt 0:00:07]} Qc7 {[%emt 0:00:05]} 33. Nxb4 {[%emt
0:00:03]} Nb5 {[%emt 0:00:01]} 34. Nd3 {[%emt 0:00:05]} d4 {[%emt 0:00:03]} 35.
Qe4 {[%emt 0:00:04]} c5 {[%emt 0:00:12]} 36. Rc6 {[%emt 0:00:03]} Qe7 {[%emt 0:
00:06]} 37. Qxe7 {[%emt 0:00:10]} Rxe7 {[%emt 0:00:01]} 38. Rxc5 {[%emt 0:00:
01]} a6 {[%emt 0:00:09]} 39. Rc6 {[%emt 0:00:05]} Nc7 {[%emt 0:00:05]} 40. Nc5
{[%emt 0:00:03]} a5 {[%emt 0:00:35]} 1-0

[Event "Championnat de France Universitaire Nan"]
[Site "Nancy, France"]
[Date "2020.02.09"]
[Round "9.6"]
[White "Daeschler, Florian"]
[Black "Aubert, Estee"]
[Result "1-0"]
[WhiteElo "2327"]
[BlackElo "1998"]
[PlyCount "87"]
[EventDate "2020.??.??"]
[TimeControl "15+5"]
[WhiteClock "0:10:43"]
[BlackClock "0:02:04"]

1. d4 {[%emt 0:00:00]} d5 {[%emt 0:00:02]} 2. c4 {[%emt 0:00:01]} dxc4 {[%emt
0:00:02]} 3. e4 {[%emt 0:00:00]} e5 {[%emt 0:00:02]} 4. Nf3 {[%emt 0:00:01]}
exd4 {[%emt 0:00:02]} 5. Bxc4 {[%emt 0:00:02]} Be6 {[%emt 0:00:02]} 6. Bxe6 {
[%emt 0:00:10]} fxe6 {[%emt 0:00:02]} 7. Nxd4 {[%emt 0:00:49]} e5 {[%emt 0:00:
59]} 8. Qh5+ {[%emt 0:00:08]} Kd7 {[%emt 0:01:34]} 9. Qf5+ {[%emt 0:00:12]} Ke8
{[%emt 0:00:45]} 10. Qxe5+ {[%emt 0:00:11]} Qe7 {[%emt 0:00:51]} 11. Qxe7+ {
[%emt 0:00:12]} Bxe7 {[%emt 0:00:16]} 12. Nc3 {[%emt 0:00:10]} Nd7 {[%emt 0:00:
18]} 13. Bf4 {[%emt 0:00:08]} c6 {[%emt 0:00:35]} 14. Nf5 {[%emt 0:00:28]} Kf7
{[%emt 0:00:22]} 15. Rd1 {[%emt 0:00:02]} Nb6 {[%emt 0:00:18]} 16. O-O {[%emt
0:00:08]} Nf6 {[%emt 0:00:16]} 17. Nxe7 {[%emt 0:00:21]} Kxe7 {[%emt 0:00:02]}
18. Bg5 {[%emt 0:00:14]} h6 {[%emt 0:00:15]} 19. Bxf6+ {[%emt 0:00:19]} Kxf6 {
[%emt 0:00:04]} 20. Rd6+ {[%emt 0:00:08]} Ke7 {[%emt 0:00:04]} 21. Rfd1 {[%emt
0:00:23]} Rad8 {[%emt 0:00:11]} 22. Rxd8 {[%emt 0:00:04]} Rxd8 {[%emt 0:00:01]}
23. Rxd8 {[%emt 0:00:01]} Kxd8 {[%emt 0:00:01]} 24. f4 {[%emt 0:00:10]} Ke7 {
[%emt 0:00:10]} 25. Kf2 {[%emt 0:00:01]} Ke6 {[%emt 0:00:03]} 26. Kf3 {[%emt 0:
00:07]} Nc4 {[%emt 0:00:19]} 27. b3 {[%emt 0:00:02]} Nd6 {[%emt 0:00:04]} 28.
e5 {[%emt 0:00:36]} Nf7 {[%emt 0:01:00]} 29. Ke4 {[%emt 0:00:04]} b6 {[%emt 0:
01:54]} 30. Ne2 {[%emt 0:00:15]} Nd8 {[%emt 0:01:30]} 31. Nd4+ {[%emt 0:00:15]}
Kf7 {[%emt 0:00:02]} 32. f5 {[%emt 0:00:18]} a6 {[%emt 0:00:20]} 33. g4 {[%emt
0:00:07]} c5 {[%emt 0:00:29]} 34. Nc2 {[%emt 0:00:15]} Ke7 {[%emt 0:01:24]} 35.
Kd5 {[%emt 0:00:06]} Kd7 {[%emt 0:00:29]} 36. Ne3 {[%emt 0:00:05]} Ke7 {[%emt
0:00:04]} 37. Nc4 {[%emt 0:00:23]} b5 {[%emt 0:00:13]} 38. Nd6 {[%emt 0:00:04]}
c4 {[%emt 0:00:24]} 39. bxc4 {[%emt 0:00:01]} bxc4 {[%emt 0:00:04]} 40. Nxc4 {
[%emt 0:00:06]} Nf7 {[%emt 0:00:33]} 41. h4 {[%emt 0:00:26]} Nd8 {[%emt 0:00:
14]} 42. Nd6 {[%emt 0:00:07]} a5 {[%emt 0:00:18]} 43. a4 {[%emt 0:00:03]} Kf8 {
[%emt 0:00:07]} 44. Kc5 {[%emt 0:00:05]} 1-0

[Event "Championnat de France Universitaire Nan"]
[Site "Nancy, France"]
[Date "2020.02.09"]
[Round "9.7"]
[White "Cogan, Nicolas"]
[Black "Budak, Rewi"]
[Result "1-0"]
[WhiteElo "1980"]
[BlackElo "2079"]
[PlyCount "113"]
[EventDate "2020.??.??"]
[TimeControl "15+5"]
[WhiteClock "0:00:19"]
[BlackClock "0:00:54"]

1. d4 {[%emt 0:00:03]} c5 {[%emt 0:00:00]} 2. d5 {[%emt 0:00:13]} e5 {[%emt 0:
00:00]} 3. e4 {[%emt 0:00:11]} d6 {[%emt 0:00:00]} 4. c4 {[%emt 0:00:25]} g6 {
[%emt 0:00:01]} 5. Bd3 {[%emt 0:00:06]} h5 {[%emt 0:00:05]} 6. f4 {[%emt 0:01:
07]} Bg7 {[%emt 0:00:35]} 7. Nc3 {[%emt 0:00:02]} a6 {[%emt 0:00:42]} 8. Nf3 {
[%emt 0:00:27]} Bg4 {[%emt 0:00:19]} 9. O-O {[%emt 0:01:09]} Nd7 {[%emt 0:00:
33]} 10. Qa4 {[%emt 0:00:34]} b5 {[%emt 0:02:45]} 11. cxb5 {[%emt 0:00:23]}
axb5 {[%emt 0:00:00]} 12. Qxb5 {[%emt 0:00:15]} Rb8 {[%emt 0:00:00]} 13. Qa4 {
[%emt 0:02:10]} Rb4 {[%emt 0:00:02]} 14. Qa6 {[%emt 0:01:45]} Rb6 {[%emt 0:01:
09]} 15. Qa5 {[%emt 0:00:10]} exf4 {[%emt 0:00:04]} 16. Bb5 {[%emt 0:02:00]}
Bxf3 {[%emt 0:03:12]} 17. Bxd7+ {[%emt 0:02:53]} Kxd7 {[%emt 0:00:03]} 18. Rxf3
{[%emt 0:00:09]} Bd4+ {[%emt 0:00:01]} 19. Kh1 {[%emt 0:00:06]} g5 {[%emt 0:00:
00]} 20. Nb5 {[%emt 0:00:36]} Rxb5 {[%emt 0:02:59]} 21. Qxb5+ {[%emt 0:00:02]}
Ke7 {[%emt 0:00:01]} 22. Bd2 {[%emt 0:00:18]} Nf6 {[%emt 0:00:16]} 23. Bc3 {
[%emt 0:00:29]} Bxc3 {[%emt 0:00:04]} 24. bxc3 {[%emt 0:00:01]} Nxe4 {[%emt 0:
00:02]} 25. a4 {[%emt 0:00:18]} Qa8 {[%emt 0:00:39]} 26. a5 {[%emt 0:00:22]}
Qxd5 {[%emt 0:01:13]} 27. a6 {[%emt 0:00:20]} h4 {[%emt 0:00:06]} 28. Qb7+ {
[%emt 0:00:12]} Qxb7 {[%emt 0:00:15]} 29. axb7 {[%emt 0:00:01]} Rb8 {[%emt 0:
00:01]} 30. Rb1 {[%emt 0:00:14]} c4 {[%emt 0:00:06]} 31. Rb5 {[%emt 0:00:23]}
Nc5 {[%emt 0:00:40]} 32. Rf1 {[%emt 0:00:11]} Rxb7 {[%emt 0:00:12]} 33. Rxb7+ {
[%emt 0:00:07]} Nxb7 {[%emt 0:00:01]} 34. Rd1 {[%emt 0:00:03]} Nc5 {[%emt 0:00:
08]} 35. Rd4 {[%emt 0:00:06]} Ke6 {[%emt 0:00:19]} 36. Rxc4 {[%emt 0:00:01]}
Kd5 {[%emt 0:00:01]} 37. Rd4+ {[%emt 0:00:01]} Ke5 {[%emt 0:00:02]} 38. Kg1 {
[%emt 0:00:02]} d5 {[%emt 0:00:22]} 39. Kf1 {[%emt 0:00:04]} Ne4 {[%emt 0:00:
01]} 40. Rd3 {[%emt 0:00:01]} g4 {[%emt 0:00:06]} 41. Ke2 {[%emt 0:00:06]} f6 {
[%emt 0:00:07]} 42. Kf1 {[%emt 0:00:25]} Nc5 {[%emt 0:00:10]} 43. Rd4 {[%emt 0:
00:00]} Nb3 {[%emt 0:00:02]} 44. Rd3 {[%emt 0:00:00]} Ke4 {[%emt 0:00:09]} 45.
Rd1 {[%emt 0:00:07]} f3 {[%emt 0:00:07]} 46. gxf3+ {[%emt 0:00:03]} Kxf3 {
[%emt 0:00:04]} 47. Rxd5 {[%emt 0:00:00]} Ke4 {[%emt 0:00:05]} 48. Rb5 {[%emt
0:00:16]} Nd2+ {[%emt 0:00:15]} 49. Kf2 {[%emt 0:00:01]} f5 {[%emt 0:00:16]}
50. Rb4+ {[%emt 0:00:03]} Kd5 {[%emt 0:00:01]} 51. Rd4+ {[%emt 0:00:04]} Ke5 {
[%emt 0:00:06]} 52. Rxd2 f4 {[%emt 0:00:01]} 53. c4 {[%emt 0:00:03]} Ke4 {
[%emt 0:00:16]} 54. Re2+ {[%emt 0:00:16]} Kd3 {[%emt 0:00:04]} 55. Re7 {[%emt
0:00:02]} Kxc4 {[%emt 0:00:05]} 56. Re4+ {[%emt 0:00:01]} Kd3 {[%emt 0:00:05]}
57. Rxf4 {[%emt 0:00:01]} 1-0